Cogmind - Beta 13 X1 @@@ ROGUE MODE // 2023.11.01 @ 20:11:09 Player: leiavoia Result: Core destroyed Performance ------------- Evolutions (0) 0 Regions Visited (2) 400 Robots Destroyed (18) 90 Value Destroyed (526) 526 Prototype IDs (2) 40 Alien Tech Used (0) 0 Bonus (0) 0 TOTAL SCORE: 1056 Bonus ------- None Cogmind --------- Core Integrity 0/250 Matter 300/300 Energy 199/200 System Corruption 0% Temperature Cool (0) Movement Rolling (125) Ox3 Location -10/Subcaves Parts ------- > --- POWER (1) -------- Subdweller Power Source > --- PROPULSION (2) --- Light Treads Wheel > --- UTILITY (2) ------ Large Storage Unit Seismic Detector > --- WEAPON (2) ------- Grenade Launcher Grenade Launcher > --- INVENTORY (15) --- Ion Engine Light Treads Spiked Treads Wheel Improved Heat Sink Hacking Suite EM Pulse Gun Beam Rifle Subdweller Machine Gun Barrage Gun Battle Cannon Battle Cannon EMP Blaster EMP Blaster Datajack Peak State ------------ > --- POWER ------------ Ion Engine > --- PROPULSION ------- Light Treads Wheel > --- UTILITY ---------- Large Storage Unit Seismic Detector > --- WEAPON ----------- EM Pulse Gun Particle Cannon > --- INVENTORY -------- Ion Engine Light Ion Engine Light Treads Wheel Hacking Suite Beam Rifle Beam Rifle Light Assault Rifle EMP Blaster EMP Blaster EMP Blaster Grenade Launcher Datajack [Rating: 10] Favorites ----------- Power Light Ion Engine Engine Light Ion Engine Propulsion Aluminum Leg Treads Light Treads Leg Aluminum Leg Wheel Wheel Utility Seismic Detector Device Seismic Detector Storage Large Storage Unit Weapon EM Pulse Gun Energy Gun EM Pulse Gun Energy Cannon Particle Cannon Ballistic Gun Light Assault Rifle Launcher Grenade Launcher Special Melee Weapon Datajack Build | -11 -10 -10 ------- Run | Jun Mat Sub Slots Evolved . | . . . Power . | . . . Propulsion . | . . . Utility . | . . . Weapon . | . . . Parts Attached 19 | 2 13 4 Power 2 | . 1 1 Engine 2 | . 1 1 Core . | . . . Reactor . | . . . Propulsion 2 | . 2 . Treads 1 | . 1 . Leg . | . . . Wheel 1 | . 1 . Hover . | . . . Flight . | . . . Utility 3 | 2 1 . Device 2 | 2 . . Storage 1 | . 1 . Processor . | . . . Hackware . | . . . Protection . | . . . Artifact . | . . . Weapon 12 | . 9 3 Energy Gun 4 | . 3 1 Energy Cannon 3 | . 3 . Ballistic Gun . | . . . Ballistic Cannon . | . . . Launcher 4 | . 2 2 Special Weapon . | . . . Impact Weapon . | . . . Slashing Weapon . | . . . Piercing Weapon . | . . . Special Melee Weapon 1 | . 1 . Unidentified Prototypes . | . . . Parts Lost 1 | . . 1 Power . | . . . Propulsion . | . . . Utility . | . . . Weapon 1 | . . 1 Highest Loss Streak 1 | . . 1 To Critical Strikes . | . . . Average Slot Usage (%) 100 | . 100 100 Engine 14 | . 14 14 Treads 6 | . 4 14 Leg 12 | . 16 . Wheel 8 | . 7 14 Device 14 | . 14 14 Storage 14 | . 14 14 Energy Gun 11 | . 13 5 Energy Cannon 6 | . 7 5 Ballistic Gun 4 | . 5 . Launcher 4 | . 1 16 Naked Turns . | . . . Heaviest Build 32 | 11 32 32 Greatest Support 20 | 20 20 10 Greatest Overweight (x) 3 | . 2 3 Average Overweight (x) 1 | . . 3 Largest Inventory Capacity 15 | 8 15 15 Average Capacity 11 | 8 10 15 Most Carried 15 | 8 15 15 Average Carried 10 | 6 8 14 Final Capacity 15 | 8 15 15 Final Carried 15 | 8 15 15 Class Distribution -------------------- 100% | Mutant Dominant Class ---------------- Mutant | -10/Materials Mutant | -10/Subcaves Resources | -11 -10 -10 ----------- Run | Jun Mat Sub Matter Collected 537 | 228 184 125 Remotely 10 | 10 . . Salvage Created 673 | 116 388 169 Parts 46 | 5 31 10 Haulers Intercepted 1 | . 1 . Recyclers Shooed . | . . . Parts Field Recycled . | . . . Retrieved Matter . | . . . Parts Self-Destructed 7 | . . 7 Prevented . | . . . Kills | -11 -10 -10 ------- Run | Jun Mat Sub Combat Hostiles Destroyed 9 | . 5 4 Guns 4 | . 4 . Cannons 3 | . 1 2 AOE 2 | . . 2 Classes Destroyed 8 | 2 5 1 Builder 1 | . 1 . Tunneler 1 | 1 . . Hauler 1 | . 1 . Recycler 1 | 1 . . Operator 2 | . 2 . Watcher 3 | . 3 . Grunt 5 | . 5 . Subdweller 4 | . . 4 Best Kill Streak 2 | 2 2 2 Combat Bots Only 2 | . 2 2 Max Kills in Single Turn 2 | 1 1 2 Gunslinging . | . . . Exploded 2 | . . 2 Melee . | . . . Uniques/NPCs Destroyed . | . . . Combat | -11 -10 -10 -------- Run | Jun Mat Sub Damage Taken 616 | . 224 392 Core 255 | . 52 203 Absorbed by Shields . | . . . Core Remaining (%) 100 | 100 . . Volleys Fired 63 | 4 49 10 Largest 2 | 2 2 2 Hottest 108 | 40 108 108 Shots Fired 117 | 8 89 20 Gun 85 | 8 69 8 Cannon 19 | . 11 8 Launcher 13 | . 9 4 Special . | . . . Kinetic 37 | 8 29 . Thermal 19 | . 11 8 Explosive 13 | . 9 4 Electromagnetic 48 | . 40 8 Robot Hit Streak 12 | 3 11 12 Robot Miss Streak 7 | 1 7 1 Penetration Max . | . . . Secondary Targets . | . . . Shots Hit Robots 69 | 6 44 19 Core Hits 34 | 4 23 7 Critical Kills . | . . . Critical Parts Destroyed . | . . . Critical Strikes . | . . . Melee Attacks . | . . . Impact . | . . . Slashing . | . . . Piercing . | . . . Sneak Attacks . | . . . Combat Hostiles . | . . . Follow-up Attacks . | . . . Damage Inflicted 1192 | 51 693 448 Guns 571 | 51 432 88 Cannons 248 | . 103 145 Explosions 353 | . 138 215 Melee . | . . . Ramming 20 | . 20 . Kinetic 188 | 51 137 . Thermal 333 | . 188 145 Explosive 268 | . 53 215 Electromagnetic 383 | . 295 88 Impact . | . . . Slashing . | . . . Piercing . | . . . Highest Corruption . | . . . Average Corruption . | . . . Corruption Purged . | . . . Corruption Blocked . | . . . Overload Shots . | . . . Overflow Damage 6 | . 6 . Projectiles . | . . . Explosions 6 | . 6 . Melee . | . . . Knockbacks . | . . . Impact . | . . . Kinetic . | . . . Secondary . | . . . Self-Inflicted Damage 42 | . 36 6 Shots 2 | . 1 1 Rammed 3 | . 3 . Targets Rammed 4 | . 4 . Kicked 1 | . 1 . Crushed . | . . . Highest Temperature 144 | . 144 16 Average Temperature 35 | . 38 8 Received Heat Transfer 192 | . 108 84 Siege Activations . | . . . Robots Corrupted . | . . . Combat Hostiles . | . . . Parts Fried 2 | . 2 . Impact Corruptions . | . . . Robots Melted . | . . . Combat Hostiles . | . . . Parts Melted 1 | . 1 . Heat Transferred 544 | . 285 259 Parts Sabotaged . | . . . Parts Stolen . | . . . Parts Stripped . | . . . Power Chain Reactions 3 | . 3 . Missiles Intercepted . | . . . Alert | -11 -10 -10 ------- Run | Jun Mat Sub Peak Influence 233 | 10 233 . Initial 6 | . 6 . Average 71 | 7 72 . Maximum Alert Level 1 | . 1 . Low Security (%) 97 | 100 97 . Level 1 2 | . 2 . Level 2 . | . . . Level 3 . | . . . Level 4 . | . . . Level 5 . | . . . High Security . | . . . Max Security . | . . . Squads Dispatched 2 | . 2 . Investigation 1 | . 1 . Extermination . | . . . Reinforcement 1 | . 1 . Assault . | . . . Garrison . | . . . Intercept . | . . . Searches Triggered . | . . . Construction Impeded . | . . . Haulers Reinforced . | . . . Active Scanning Responses . | . . . Cargo Convoy Interrupts . | . . . Stealth | -11 -10 -10 --------- Run | Jun Mat Sub Distress Signals 2 | . 2 . Communications Jammed . | . . . Distress Signals . | . . . Times Spotted 17 | . 13 4 Peak Tracking Total 3 | . 3 2 Tactical Retreats 1 | . 1 . Traps | -11 -10 -10 ------- Run | Jun Mat Sub Traps Triggered 2 | . . 2 Indirectly . | . . . Trap Hack Attempts 21 | . 21 . Triggered . | . . . Disarmed 1 | . 1 . Reprogrammed . | . . . Reused . | . . . Traps Extracted . | . . . Installed . | . . . Triggered . | . . . Machines | -11 -10 -10 ---------- Run | Jun Mat Sub Machines Disabled 7 | . 7 . Max in Single Turn 2 | . 2 . Machines Repaired . | . . . Machines Sabotaged . | . . . Overloaded Fab Kills . | . . . Hacking | -11 -10 -10 --------- Run | Jun Mat Sub Machines Accessed 10 | . 9 1 Terminals 7 | . 7 . Fabricators . | . . . Repair Stations . | . . . Recycling Units 2 | . 2 . Scanalyzers . | . . . Garrison Access . | . . . Total Hacks 33 | . 32 1 Successful 15 | . 14 1 Failed 17 | . 17 . Catastrophic 1 | . 1 . Database Lockouts 1 | . 1 . Manual 17 | . 10 7 Terminals 27 | . 27 . Fabricators . | . . . Repair Stations . | . . . Recycling Units 5 | . 5 . Scanalyzers . | . . . Garrison Access . | . . . Terminal Hacks 12 | . 11 1 Record 1 | . . 1 Part Schematic 1 | . 1 . Prototype ID Bank 1 | . 1 . Terminal Index 1 | . 1 . Unreport Threat 1 | . 1 . Locate Traps 1 | . 1 . Surveillance Status 1 | . 1 . Recall Investigation 1 | . 1 . Recall Reinforcements 1 | . 1 . Hauler Manifests 1 | . 1 . Zone Layout 2 | . 2 . Fabricator Hacks . | . . . Repair Station Hacks . | . . . Recycling Unit Hacks 1 | . 1 . Retrieve Components 1 | . 1 . Scanalyzer . | . . . Garrison Access Hacks . | . . . Unauthorized Hacks 2 | . 2 . Terminals 1 | . 1 . Botnet 1 | . 1 . Fabricators . | . . . Repair Stations . | . . . Recycling Units 1 | . 1 . Tunnel 1 | . 1 . Scanalyzers . | . . . Garrison Access . | . . . Data Cores Recovered 1 | . 1 . Used 1 | . 1 . Hacking Detections 9 | . 9 . Full Trace Events 4 | . 4 . Feedback Events . | . . . Feedback Blocked . | . . . Robot Schematics Acquired . | . . . Robots Built . | . . . Authchips . | . . . Time . | . . . Total Robot Build Rating . | . . . Part Schematics Acquired 1 | . 1 . Parts Built . | . . . Authchips . | . . . Time . | . . . Total Part Build Rating . | . . . Parts Repaired . | . . . Time . | . . . Parts Recycled . | . . . Recycled Matter . | . . . Retrieved Matter . | . . . Retrieved Components 10 | . 10 . Parts Scanalyzed . | . . . Part Schematics Acquired . | . . . Parts Damaged . | . . . Bothacking | -11 -10 -10 ------------ Run | Jun Mat Sub Used RIF Installer . | . . . Robots Hacked . | . . . Non-combat . | . . . Combat . | . . . Robot Hacks Applied . | . . . Relay Couplers Released . | . . . Fabnet Peak Effective % . | . . . Robots Rewired . | . . . Allies Hacked . | . . . Hacks Repelled . | . . . Allies | -11 -10 -10 -------- Run | Jun Mat Sub Total Allies . | . . . Largest Group . | . . . Highest-Rated Group . | . . . Highest-Rated Ally . | . . . Total Orders . | . . . Ally Attacks . | . . . Total Damage . | . . . Kills . | . . . Allies Corrupted . | . . . Allies Melted . | . . . Intel | -11 -10 -10 ------- Run | Jun Mat Sub Robot Analysis Total . | . . . Derelict Logs Recovered 1 | . . 1 Drone Launches . | . . . Drone Recoveries . | . . . Exploration | -11 -10 -10 ------------- Run | Jun Mat Sub Turns Passed 1807 | 27 1345 435 Spaces Moved 1035 | 11 713 311 Core . | . . . Treads 166 | . 166 . Legs 328 | 11 317 . Wheels 541 | . 230 311 Hover . | . . . Flight . | . . . Fastest Speed 95 | 120 95 125 Average Speed 135 | 120 140 125 Slowest Speed 240 | 120 240 125 Overloaded Moves . | . . . Propulsion Burnouts . | . . . Robots Hopped . | . . . Cave-ins Triggered . | . . . Exploration Rate (%) 44 | 2 95 35 Regions Visited 2 Branch Regions 1 Pre-discovered Areas 1 | . 1 . Known Exits Taken . | . . . Unknown Exits Taken 2 | 1 1 . Scrap Searched 3 | . . 3 Spaces Dug 5 | . 5 . Terrain Destroyed 102 | . 72 30 Melee . | . . . Projectile . | . . . AOE 102 | . 72 30 Terrain Rammed . | . . . Walls Destroyed . | . . . Machines Disabled . | . . . Actions | -11 -10 -10 --------- Run | Jun Mat Sub Total 1326 | 18 968 340 Wait 152 | . 150 2 Move 1033 | 10 712 311 Hop . | . . . Pick Up 18 | 1 11 6 Fast Attach 5 | 2 1 2 Attach 2 | . 2 . Detach 1 | 1 . . Swap 12 | . 10 2 Drop 15 | . 8 7 Fire 63 | 4 49 10 Melee . | . . . Ram . | . . . Kick 1 | . 1 . Crush 3 | . 3 . Escape Stasis . | . . . Rewire . | . . . Trap 21 | . 21 . Miscellaneous . | . . . Route ------- -11/Junkyard -10/Materials (discovered 5 exits: [*Mat x3] / [*Min] / *Sub) -10/Subcaves History --------- Turn | Location | Event 12 | -11/Junkyard | Discovered new exit (range 3) 28 | -11/Junkyard | Entered Materials 123 | -10/Materials | Discovered new exit (range 13) 300 | -10/Materials | Build established: Mutant 303 | -10/Materials | Central database locked down 671 | -10/Materials | Discovered new exit (range 7) 727 | -10/Materials | Discovered new exit (range 8) 872 | -10/Materials | Discovered new exit (range 8) 893 | -10/Materials | Discovered new exit (range 8) 1373 | -10/Materials | Entered Subcaves 1381 | -10/Subcaves | Learned 2 Materials zone layouts 1416 | -10/Subcaves | Visited Clippyterm 1496 | -10/Subcaves | Ambushed by Subdwellers from Twisted Machinery 1509 | -10/Subcaves | Core integrity fell below 50% 1626 | -10/Subcaves | Disturbed a concealed Subdweller 1626 | -10/Subcaves | Ambushed by Subdweller buried in earth 1737 | -10/Subcaves | Shifting Twisted Machinery released Sub. Power Source 1737 | -10/Subcaves | Shifting Twisted Machinery released Battle Rifle 1807 | -10/Subcaves | Core integrity fell below 20% 1808 | -10/Subcaves | Core destroyed Last Messages --------------- 01649_ Acquired 22 matter. 01652_ Searching scrap... 01652_ Found Battle Cannon. 01652_ Found 23 Matter. 01653_ Acquired 15 matter. 01653_ The unstable cave ceiling collapses. 01654_ Dropped Beam Rifle. 01655_ Acquired Battle Cannon. 01656_ Dropped EMP Blaster. 01658_ Acquired Battle Cannon. 01667_ The unstable cave ceiling collapses. 01667_ Scrap Shield Fragment crushed. Sub. Power Source falls loose from the Twisted Machinery. Battle Rifle falls loose from the Twisted Machinery. 01806_ Triggered Piercing Trap. 01806_ Spikes shoot up from the floor. 01806_ Critical hit (Impale). 01808_ Triggered Piercing Trap. 01808_ Spikes shoot up from the floor. 01808_ Critical hit (Impale). Map ----- +----------------------------------------------------+ | ?????????????????????????????????????????????? | | ?????????????????????????????????????????????? | | ?????????????????????????????????????????????? | | ?????????????????????????????????????????????? | | ?????????????????????????????????????????????? | | ?????????????????????????????????????????????? | | ?????????????????????????????????????????????? | | ?????????????????????????????????????????????? | | ?????????????????????????????????????????????? | | ?????????????????????????????????????????????? | | ?????????????????????????????????????????????? | | ?????????????????????????????????????????????? | | ?????????????????????????????????????????????? | | ?????????????????????????????????????????????? | | ???????????????????????##????????????????????? | | ??????????????????###### ????????????????????? | | ??????????????##### # ????????????????????? | | ???????????????$ ????????????????????? | | ????????????????# ????????????????????? | | ????????????????# # # ????????????????????? | | ?????????????????? ##??????????????????? | | ??????????????????? #??????????????????? | | ????????????????????# #??????????????????? | | ????????????????????# ##?????????????????? | | ?????????????????????# #?????????????????? | | ??????????????????????# @ #?????????????????? | | ??????????????????????## #?????????????????? | | ???????????????????????# #?????????????????? | | ??????????????????????## #?????????????????? | | ??????????????????????# ##?????????????????? | | ??????????????????????## ####???????????????? | | ?????????????????????### ##??????????????? | | ????????????????????## # #??????????????? | | ??????????????????### ## #??????????????? | | ??????????????????# # ##??????????????? | | ??????????????????# ##???????????????? | | ??????????????????## #????????????????? | | ??????????????????# # #????????????????? | | ??????????????##??## ##????????????????? | | ??????????????# ### #?????????????????? | | ??????????????# ##?????????????????? | | ?????????????## #??????????????????? | | ?????????????# #??????????????????? | | ?????????????# ##?????????????????? | | ?????????????## ## #?????????????????? | | ??????????????# ##### #?????????????????? | | ??????????????# ### #?????????????????? | | ??????????????## #?## ####??????????????? | | ???????????????###??# #??????????????? | | ????????????????????# #??????????????? | +----------------------------------------------------+ Best States ------------- Heat Dissipation 25 Energy Generation 15 Energy Capacity 250 Matter Stores 300 Matter Capacity 300 Sight Range 16 Terrain Scan Density 10 Evasion (%) 55 Recoil Reduction 1 Item Schematics ----------------- Cargo Storage Unit | -10/Materials | Hacked Robot Schematics ------------------ None Fabricated ------------ Nothing Alien Tech Used ----------------- None Achievements -------------- None Challenges ------------ None Game ------ Seed GravmagCloakDoublenader Manual? 0 Play Time 00:20:20 Cumulative 1032.3 hours Start 2023.11.01 @ 19:45:26 End 2023.11.01 @ 20:11:09 Sessions 1 Manual Loads 0 Difficulty Rogue Special Mode None Game No. 218 Rogue 186 Adventurer 31 Explorer 1 Win Type - Total 46 Types 32/0/6/7/0/0/1/0/0 Lore% 84 Gallery% 89 Achievement% 79 Wizard Run 0 Options --------- ASCII 0 Keyboard 0 Movement Arrows Keybinds 0 Fullscreen 1 Font 20/Terminus Map View 66x50 Tactical HUD 1 Map Filters NONE Filters NONE Steam 1 RUN: 45c1c3b9-b14d-4851-bb6e-569c226d7d13